Cogmind - Beta 13 @@@ ROGUE MODE // 2024.03.24 @ 10:20:09 Player: Oldman Pu Result: Destroyed by G-47 Trooper with Particle Gun Performance ------------- Evolutions (0) 0 Regions Visited (1) 200 Robots Destroyed (8) 40 Value Destroyed (213) 213 Prototype IDs (0) 0 Alien Tech Used (0) 0 Bonus (0) 0 TOTAL SCORE: 453 Bonus ------- None Cogmind --------- Core Integrity 0/250 Matter 251/300 Energy 250/250 System Corruption 0% Temperature Cool (9) Movement Walking (190) Ox1 Location -10/Materials Parts ------- > --- POWER (1) -------- Ion Engine > --- PROPULSION (2) --- Aluminum Leg Aluminum Leg > --- UTILITY (2) ------ Heat Sink Large Storage Unit > --- WEAPON (2) ------- Light Assault Rifle Light Assault Rifle > --- INVENTORY (15) --- Light Ion Engine Peak State ------------ > --- POWER ------------ Light Ion Engine > --- PROPULSION ------- Wheel Compact Wheel > --- UTILITY ---------- Small Storage Unit Light Armor Plating > --- WEAPON ----------- Assault Rifle Light Assault Rifle > --- INVENTORY -------- Light Ion Engine Light Assault Rifle [Rating: 7] Favorites ----------- Power Light Ion Engine Engine Light Ion Engine Propulsion Compact Wheel Leg Aluminum Leg Wheel Compact Wheel Utility Large Storage Unit Device Heat Sink Storage Large Storage Unit Protection Light Armor Plating Weapon Light Assault Rifle Ballistic Gun Light Assault Rifle Build | -11 -10 ------- Run | Yrd Mat Slots Evolved . | . . Power . | . . Propulsion . | . . Utility . | . . Weapon . | . . Parts Attached 16 | 7 9 Power 2 | 1 1 Engine 2 | 1 1 Core . | . . Reactor . | . . Propulsion 4 | 2 2 Treads . | . . Leg 2 | . 2 Wheel 2 | 2 . Hover . | . . Flight . | . . Utility 5 | 1 4 Device 2 | . 2 Storage 2 | 1 1 Processor . | . . Hackware . | . . Protection 1 | . 1 Artifact . | . . Weapon 5 | 3 2 Energy Gun . | . . Energy Cannon . | . . Ballistic Gun 5 | 3 2 Ballistic Cannon . | . . Launcher . | . . Special Weapon . | . . Impact Weapon . | . . Slashing Weapon . | . . Piercing Weapon . | . . Special Melee Weapon . | . . Unidentified Prototypes . | . . Parts Lost 7 | . 7 Power 1 | . 1 Propulsion 2 | . 2 Utility 2 | . 2 Weapon 2 | . 2 Highest Loss Streak 7 | . 7 To Critical Strikes . | . . Average Slot Usage (%) 87 | . 87 Engine 11 | . 11 Leg 7 | . 7 Wheel 15 | . 15 Device 4 | . 4 Storage 14 | . 14 Protection 5 | . 5 Ballistic Gun 27 | . 27 Naked Turns . | . . Heaviest Build 29 | 11 29 Greatest Support 26 | 26 26 Greatest Overweight (x) 7 | . 7 Average Overweight (x) . | . . Largest Inventory Capacity 15 | 8 15 Average Capacity 13 | 5 14 Most Carried 3 | 2 3 Average Carried 1 | 1 1 Final Capacity 15 | 8 15 Final Carried 2 | 2 1 Class Distribution -------------------- 77% | Mutant 22% | Scavenger-Mutant Dominant Class ---------------- Mutant | -10/Materials Resources | -11 -10 ----------- Run | Yrd Mat Matter Collected 420 | 183 237 Remotely . | . . Salvage Created 253 | . 253 Parts 20 | . 20 Haulers Intercepted . | . . Recyclers Shooed 1 | . 1 Parts Field Recycled . | . . Retrieved Matter . | . . Parts Self-Destructed . | . . Prevented . | . . Kills | -11 -10 ------- Run | Yrd Mat Combat Hostiles Destroyed 8 | . 8 Guns 8 | . 8 Classes Destroyed 2 | . 2 Swarmer 3 | . 3 Grunt 5 | . 5 Best Kill Streak 4 | . 4 Combat Bots Only 4 | . 4 Max Kills in Single Turn 1 | . 1 Gunslinging . | . . Exploded . | . . Melee . | . . Uniques/NPCs Destroyed . | . . Combat | -11 -10 -------- Run | Yrd Mat Hostile Shots Fired 108 | . 108 Missed 22 | . 22 Damage Taken 844 | . 844 Core 265 | . 265 Absorbed by Shields . | . . Core Remaining (%) 100 | 100 . Volleys Fired 47 | . 47 Largest 2 | . 2 Hottest 40 | . 40 Shots Fired 88 | . 88 Gun 88 | . 88 Cannon . | . . Launcher . | . . Special . | . . Kinetic 88 | . 88 Thermal . | . . Explosive . | . . Electromagnetic . | . . Robot Hit Streak 10 | . 10 Robot Miss Streak 9 | . 9 Penetration Max . | . . Secondary Targets 1 | . 1 Max Gunslinging Chain 1 | . 1 Shots Hit Robots 49 | . 49 Core Hits 19 | . 19 Critical Kills . | . . Critical Parts Destroyed . | . . Critical Strikes . | . . Melee Attacks . | . . Impact . | . . Slashing . | . . Piercing . | . . Sneak Attacks . | . . Combat Hostiles . | . . Follow-up Attacks . | . . Damage Inflicted 459 | . 459 Guns 459 | . 459 Cannons . | . . Explosions . | . . Melee . | . . Ramming . | . . Kinetic 459 | . 459 Thermal . | . . Explosive . | . . Electromagnetic . | . . Impact . | . . Slashing . | . . Piercing . | . . Highest Corruption . | . . Average Corruption . | . . Corruption Purged . | . . Corruption Blocked . | . . Overload Shots . | . . Overflow Damage . | . . Projectiles . | . . Explosions . | . . Melee . | . . Knockbacks . | . . Impact . | . . Kinetic . | . . Secondary . | . . Self-Inflicted Damage . | . . Shots . | . . Rammed . | . . Targets Rammed . | . . Kicked . | . . Crushed . | . . Highest Temperature 76 | . 76 Average Temperature 19 | . 19 Received Heat Transfer 297 | . 297 Siege Activations . | . . Robots Corrupted . | . . Combat Hostiles . | . . Parts Fried . | . . Impact Corruptions . | . . Robots Melted . | . . Combat Hostiles . | . . Parts Melted . | . . Heat Transferred . | . . Parts Sabotaged . | . . Parts Stolen . | . . Parts Stripped . | . . Power Chain Reactions . | . . Alert | -11 -10 ------- Run | Yrd Mat Peak Influence 160 | . 160 Initial . | . . Average 72 | . 81 Maximum Alert Level . | . . Low Security (%) 100 | 100 100 Level 1 . | . . Level 2 . | . . Level 3 . | . . Level 4 . | . . Level 5 . | . . High Security . | . . Max Security . | . . Squads Dispatched 3 | . 3 Investigation 1 | . 1 Extermination . | . . Reinforcement 2 | . 2 Assault . | . . Garrison . | . . Intercept . | . . Searches Triggered . | . . Construction Impeded . | . . Haulers Reinforced . | . . Active Scanning Responses . | . . Cargo Convoy Interrupts . | . . Stealth | -11 -10 --------- Run | Yrd Mat Distress Signals 2 | . 2 Communications Jammed . | . . Distress Signals . | . . Times Spotted 14 | . 14 Peak Tracking Total 4 | . 4 Tactical Retreats . | . . Traps | -11 -10 ------- Run | Yrd Mat Traps Triggered 1 | . 1 Indirectly . | . . Trap Hack Attempts . | . . Triggered . | . . Disarmed . | . . Reprogrammed . | . . Reused . | . . Traps Extracted . | . . Installed . | . . Triggered . | . . Machines | -11 -10 ---------- Run | Yrd Mat Machines Disabled . | . . Max in Single Turn . | . . Machines Repaired . | . . Machines Dismantled . | . . Machines Sabotaged . | . . Overloaded Fab Kills . | . . Hacking | -11 -10 --------- Run | Yrd Mat Machines Accessed 1 | . 1 Terminals 1 | . 1 Fabricators . | . . Repair Stations . | . . Recycling Units . | . . Scanalyzers . | . . Garrison Access . | . . Total Hacks 3 | . 3 Successful 2 | . 2 Failed 1 | . 1 Catastrophic . | . . Database Lockouts . | . . Manual . | . . Terminals 3 | . 3 Fabricators . | . . Repair Stations . | . . Recycling Units . | . . Scanalyzers . | . . Garrison Access . | . . Terminal Hacks 2 | . 2 Record 2 | . 2 Fabricator Hacks . | . . Repair Station Hacks . | . . Recycling Unit Hacks . | . . Scanalyzer . | . . Garrison Access Hacks . | . . Unauthorized Hacks . | . . Terminals . | . . Fabricators . | . . Repair Stations . | . . Recycling Units . | . . Scanalyzers . | . . Garrison Access . | . . Data Cores Recovered . | . . Used . | . . Hacking Detections 1 | . 1 Full Trace Events . | . . Feedback Events . | . . Feedback Blocked . | . . Robot Schematics Acquired . | . . Robots Built . | . . Authchips . | . . Time . | . . Total Robot Build Rating . | . . Part Schematics Acquired . | . . Parts Built . | . . Authchips . | . . Time . | . . Total Part Build Rating . | . . Parts Repaired . | . . Time . | . . Parts Recycled . | . . Recycled Matter . | . . Retrieved Matter . | . . Retrieved Components . | . . Parts Scanalyzed . | . . Part Schematics Acquired . | . . Parts Damaged . | . . Bothacking | -11 -10 ------------ Run | Yrd Mat Used RIF Installer . | . . Robots Hacked . | . . Non-combat . | . . Combat . | . . Robot Hacks Applied . | . . Relay Couplers Released . | . . Fabnet Peak Effective % . | . . Robots Rewired . | . . Allies Hacked . | . . Hacks Repelled . | . . Allies | -11 -10 -------- Run | Yrd Mat Total Allies . | . . Largest Group . | . . Highest-Rated Group . | . . Highest-Rated Ally . | . . Total Orders . | . . Ally Attacks . | . . Total Damage . | . . Kills . | . . Allies Corrupted . | . . Allies Melted . | . . Intel | -11 -10 ------- Run | Yrd Mat Robot Analysis Total . | . . Derelict Logs Recovered . | . . Drone Launches . | . . Drone Recoveries . | . . Exploration | -11 -10 ------------- Run | Yrd Mat Turns Passed 458 | 52 406 Spaces Moved 256 | 69 187 Core 57 | 52 5 Treads . | . . Legs 49 | . 49 Wheels 150 | 17 133 Hover . | . . Flight . | . . Fastest Speed 50 | 50 90 Average Speed 112 | 59 132 Slowest Speed 400 | 90 400 Overloaded Moves . | . . Propulsion Burnouts . | . . Robots Hopped . | . . Cave-ins Triggered . | . . Exploration Rate (%) 21 | 3 39 Regions Visited 1 Branch Regions . Pre-discovered Areas . | . . Known Exits Taken . | . . Unknown Exits Taken 1 | 1 . Scrap Searched . | . . Spaces Dug . | . . Terrain Destroyed . | . . Melee . | . . Projectile . | . . AOE . | . . Terrain Rammed . | . . Walls Destroyed . | . . Machines Disabled . | . . Actions | -11 -10 --------- Run | Yrd Mat Total 343 | 76 267 Wait 22 | . 22 Move 255 | 68 187 Hop . | . . Pick Up 2 | 1 1 Fast Attach 12 | 6 6 Attach 2 | . 2 Detach . | . . Swap 2 | 1 1 Drop 1 | . 1 Fire 47 | . 47 Melee . | . . Ram . | . . Kick . | . . Crush . | . . Escape Stasis . | . . Rewire . | . . Trap . | . . Miscellaneous . | . . Route ------- -11/Scrapyard -10/Materials (discovered 1 exit: [*Min]) History --------- Turn | Location | Event 21 | -11/Scrapyard | Discovered new exit (range 14) 53 | -11/Scrapyard | Entered Materials 236 | -10/Materials | Discovered new exit (range 6) 296 | -10/Materials | Core integrity fell below 50% 316 | -10/Materials | Core integrity fell below 20% 323 | -10/Materials | Build established: Mutant 344 | -10/Materials | Lost 7 parts (1p2n2u2w) 459 | -10/Materials | Destroyed by G-47 Trooper with Particle Gun Last Messages --------------- 00273_ S-10 Pest destroyed. 00279_ G-34 Mercenary destroyed. 00280_ Lgt. Assault Rifle destroyed. 00287_ Assault Rifle destroyed. 00287_ G-34 Mercenary destroyed. 00288_ Lgt. Ion Engine destroyed. 00291_ Com. Wheel destroyed. 00302_ Acquired Lgt. Assault Rifle. 00313_ Heat Sink destroyed. 00321_ S-10 Pest destroyed. 00327_ G-34 Mercenary destroyed. 00329_ Acquired 89 matter. 00333_ Acquired 12 matter. 00345_ Acquired Aluminum Leg. 00349_ Acquired Heat Sink. 00361_ Acquired Aluminum Leg. 00365_ Acquired Ion Engine. 00366_ Acquired 38 matter. 00423_ K-01 Serf collects debris. 00439_ W-16 Scout sends out distress signal. Map ----- +----------------------------------------------------+ | | | | | | | | | | | | | | | | | | | | | ????????????????????????????????????###########??? | | ??????????????????????????########??# #??? | | ??????????????????????????# """ #??# T #??? | | ??????????????????????????# """ #### #??? | | ??????????????????????????# """ # + #??? | | ??????????????????????????# # #####+#####??? | | ??????????????????????????# # ####[ =####### | | ??????????????????????????# # * | | ????????????????????????########+# ##===#[[%= | | ????????????????????????# ########### | | ????????????????????????# r #??##"????# | | ????????????????????????# """ #?##"|||??# | | ????????????????????????# """ ######?#"" ""# | | ?????????????????######## """ #??????# + | | ?????????????????# ! g u #??????# < # | | ?????????????????# #@ #??????# # | | ?????????????????# # #??????# + | | ??????????????? + """" + #??????## ## | | ?????????????# # """" ##########???????## ### | | ?????????????# ?# """" #?????????????????# | | ?????????????# ??########?????????????????# | | ????????????# ????????????????????????????# | | ????????????#????????????????????????????## """" | | ????????????????????????????????#######+## """" | | ???????????????????????????????? """" | | ???????????????????????????????# | | ???????????????????????????????# | | ??????????????????????????????????""" "T" | | ??????????????????????????????????""" ### | | ???????????????????????????????? """ #?? | | ???????????????????????????????# ### | | ???????????????????????????????# ## | | ???????????????????????????????# ## | | ???????????????????????????????# !!! ## | | ???????????????????????????????# !=! #* | | ???????????????????????????????+ !!! += | | ???????????????????????????????# # | | ???????????????????????????????? #### # | | ???????????????????????????????? ???# # | | ????????????????????????????????? !% #??# # | +----------------------------------------------------+ Best States ------------- Heat Dissipation 35 Energy Generation 10 Energy Capacity 250 Matter Stores 259 Matter Capacity 300 Sight Range 16 Terrain Scan Density 10 Armor Coverage 150 Evasion (%) 50 Item Schematics ----------------- None Robot Schematics ------------------ None Fabricated ------------ Nothing Alien Tech Used ----------------- None Achievements -------------- None Challenges ------------ None Game ------ Seed ClaymoresConstructWeb Manual? 0 Play Time 00:06:59 Cumulative 198.6 hours Start 2024.03.24 @ 10:16:19 End 2024.03.24 @ 10:20:09 Sessions 1 Manual Loads 0 Difficulty Rogue Special Mode None Game No. 149 Rogue 137 Adventurer 12 Explorer 0 Win Type - Total 1 Types 1/0/0/0/0/0/0/0/0 Lore% 27 Gallery% 43 Achievement% 32 Wizard Run 0 Options --------- Layout 1 ASCII 0 Keyboard 0 Movement Mouse Keybinds 0 Fullscreen 1 Font 32/SmallcapsGlow Map View 77x35 Zoom Use 0% Tactical HUD 1 Map Filters NONE Filters NONE Steam 1 RUN: 7eeef02c-a091-4c02-842e-edb1a3b4882b